bitfinex-derivatives/quotes_BNBF0:USTF0_20250115
["timestamp","ask_amount","ask_price","bid_price","bid_amount"]
[1736941770758,1.08032044,692.16,691.06,0.28941047]
[1736941772058,1.08032044,692.17,691.06,0.28941047]
[1736941773763,1.08032044,692.16,691.06,0.28941047]
[1736941774960,1.08032044,692.17,691.06,0.28941047]
[1736941775962,1.08032044,692.19,691.06,0.28941047]
[1736941776962,1.08032044,692.18,691.06,0.28941047]
[1736941777869,1.08032044,692.2,691.06,0.28941047]
[1736941778768,1.08032044,692.21,691.06,0.28941047]
[1736941781368,1.36922088,692.28,691.06,0.28941047]
[1736941783567,0.28890044,692.28,691.06,0.28941047]
[1736941794875,1.36922088,692.28,691.06,0.28941047]
[1736941796380,1.08032044,692.26,691.06,0.28941047]
[1736941797476,1.08032044,692.25,691.06,0.28941047]
[1736941798274,1.08032044,692.24,691.06,0.28941047]
[1736941799381,1.08032044,692.22,691.06,0.28941047]
[1736941800782,1.08032044,692.22,691.06,1.37170466]
[1736941801684,1.08032044,692.18,691.08,1.08229419]
[1736941802678,0.28890044,692.28,691.08,1.08229419]
[1736941802679,1.08032044,692.17,691.08,1.08229419]
[1736941803586,1.08032044,692.15,691.08,1.08229419]
[1736941804483,1.08032044,692.14,691.08,1.08229419]
[1736941804689,1.08032044,692.14,691.09,1.08229419]
[1736941805482,1.08032044,692.12,691.09,1.08229419]
[1736941806490,1.08032044,692.11,691.1,1.08229419]
[1736941807388,0.28890044,692.28,691.06,0.28941047]
[1736941807389,1.08032044,692.12,691.06,1.37170466]
[1736941808092,1.08032044,692.15,691.1,1.08229419]
[1736941808792,1.08032044,692.16,691.1,1.08229419]
[1736941809986,1.08032044,692.16,691.06,0.28941047]
[1736941809987,1.08032044,692.16,691.08,1.08229419]
[1736941810590,1.08032044,692.16,691.06,0.28941047]
[1736941810591,1.08032044,692.16,691.07,1.08229419]
[1736941813190,0.28890044,692.28,691.06,0.28941047]
[1736941813191,1.08032044,692.17,691.09,1.08229419]
[1736941814199,0.28890044,692.28,691.06,0.28941047]
[1736941822000,1.08032044,692.71,691.06,0.28941047]
[1736941823106,1.08032044,693.08,691.06,0.28941047]
[1736941823300,0.2885753,693.06,691.06,0.28941047]
[1736941824007,0.26550176,693.05,691.06,0.28941047]
[1736941824403,1.08032044,692.98,691.06,0.28941047]
[1736941824603,0.28861694,692.96,691.06,0.28941047]
[1736941825306,0.26553846,692.95,691.06,0.28941047]
[1736941825504,1.08032044,692.93,691.06,0.28941047]
[1736941825708,0.28863777,692.91,691.06,0.28941047]
[1736941826207,0.26554627,692.9,691.06,0.28941047]
[1736941826507,0.28865027,692.88,691.06,0.28941047]
[1736941826707,0.26554627,692.87,691.06,0.28941047]
[1736941827108,0.28866276,692.85,691.06,0.28941047]
[1736941827407,1.08032044,692.81,691.06,0.28941047]
[1736941827607,0.28868776,692.79,691.06,0.28941047]
[1736941827802,0.26554627,692.78,691.06,0.28941047]
[1736941828203,0.2886961,692.77,691.06,0.28941047]
[1736941828408,0.26554627,692.76,691.06,0.28941047]
[1736941828604,0.55426281,692.75,691.06,0.28941047]
[1736941828902,0.28870443,692.75,691.06,0.28941047]
[1736941829807,0.26554207,692.74,691.07,5.35670226]
[1736941830007,0.26554207,692.74,691.08,2.54499988]
[1736941830209,0.26554207,692.74,691.09,1.67792592]
[1736941830407,0.26554207,692.74,691.1,0.86707396]
[1736941830602,0.26554207,692.74,691.11,1.67792592]
[1736941830802,1.08032044,692.64,691.11,1.67792592]
[1736941831008,0.26554207,692.63,691.12,4.4896283]
[1736941831202,0.26554207,692.63,691.13,1.67792592]
[1736941831405,0.26554425,692.62,691.13,1.67792592]
[1736941831602,0.26554425,692.61,691.13,1.67792592]
[1736941831808,0.26554425,692.6,691.13,1.67792592]
[1736941832009,0.26554425,692.59,691.14,2.81170238]
[1736941832309,0.26554425,692.58,691.15,1.67792592]
[1736941832607,0.26554425,692.57,691.16,0.28936859]
[1736941832810,0.26554425,692.56,691.16,0.28936859]
[1736941833004,1.08032044,692.64,691.16,0.28936859]
[1736941833005,0.26554425,692.55,691.16,0.28936859]
[1736941833208,0.26554425,692.54,691.16,0.28936859]
[1736941833508,0.26554425,692.53,691.16,0.28936859]
[1736941833707,0.26554425,692.52,691.16,0.28936859]
[1736941833903,1.08032044,692.65,691.16,0.28936859]
[1736941834406,0.26554196,692.64,691.16,0.28936859]
[1736941835010,0.26554196,692.64,691.17,1.67727687]
[1736941835211,0.26554196,692.64,691.16,0.28936859]
[1736941835405,0.26554196,692.64,691.17,1.67710849]
[1736941835804,0.26554196,692.64,691.18,2.80993505]
[1736941836002,0.26554196,692.71,691.18,2.80993505]
[1736941836210,0.26550729,692.7,691.18,2.80993505]
[1736941836406,0.26550729,692.69,691.18,2.80993505]
[1736941836606,0.26551468,692.68,691.18,2.80993505]
[1736941836802,1.08032044,692.72,691.18,2.80993505]
[1736941837002,0.26551375,692.71,691.18,2.80993505]
[1736941837206,0.26551375,692.71,691.19,0.28935603]
[1736941837406,0.26551375,692.7,691.19,0.28935603]
[1736941837608,0.26551375,692.69,691.19,0.28935603]
[1736941837802,0.28870443,692.75,691.19,0.28935603]
[1736941838005,0.26551168,692.74,691.19,0.28935603]
[1736941842406,0.26550548,692.73,691.19,0.28935603]
[1736941842604,0.26550548,692.72,691.19,0.28935603]
[1736941842810,0.26550548,692.71,691.19,0.28935603]
[1736941843010,0.26550548,692.7,691.19,0.28935603]
[1736941843211,0.26550548,692.69,691.19,0.28935603]
[1736941843415,0.26550917,692.68,691.19,0.28935603]
[1736941843712,0.28870443,692.75,691.19,0.28935603]
[1736941843914,0.26550792,692.74,691.19,0.28935603]
[1736941845011,0.28870443,692.75,691.19,0.28935603]
[1736941845206,0.26550597,692.74,691.19,0.28935603]
[1736941845911,0.26550629,692.73,691.19,0.28935603]
[1736941846111,0.26550629,692.72,691.19,0.28935603]
[1736941846307,0.26550629,692.71,691.19,0.28935603]
[1736941846513,0.26550629,692.7,691.19,0.28935603]
[1736941846814,0.26550629,692.69,691.2,1.67477923]
[1736941847015,0.26550629,692.68,691.24,1.08229419]
[1736941847313,0.26550629,692.67,691.25,0.28933092]
[1736941847611,0.26550629,692.66,691.25,0.28933092]
[1736941847812,1.08032044,692.7,691.25,0.28933092]
[1736941847813,0.26550629,692.65,691.25,1.37162511]
[1736941848012,1.08032044,692.7,691.25,1.37162511]
[1736941848206,0.26549908,692.69,691.25,1.37162511]
[1736941848713,0.26549908,692.69,691.27,1.08229419]
[1736941848913,0.26549908,692.69,691.28,0.28931836]
[1736941849615,1.34581952,692.69,691.28,1.37161255]
[1736941849814,0.26549908,692.68,691.28,1.37161255]
[1736941850418,0.26549908,692.68,691.32,1.08229419]
[1736941850419,1.34581952,692.68,691.32,1.08229419]
[1736941850717,0.26549984,692.67,691.32,1.08229419]
[1736941851618,0.26549984,692.67,691.34,1.08229419]
[1736941851918,1.08032044,692.69,691.35,0.28928907]
[1736941852117,0.26549165,692.68,691.35,0.28928907]
[1736941852718,0.26549165,692.67,691.35,0.28928907]
[1736941852914,0.26549165,692.66,691.35,0.28928907]
[1736941853113,0.26549165,692.69,691.35,0.28928907]
[1736941853312,1.08032044,692.68,691.35,0.28928907]
[1736941853518,1.34581776,692.68,691.35,0.28928907]
[1736941853718,0.26549732,692.67,691.35,0.28928907]
[1736941854218,0.26549649,692.66,691.35,0.28928907]
[1736941854422,0.26549649,692.65,691.35,0.28928907]
[1736941854718,1.08032044,692.67,691.35,0.28928907]
[1736941855015,0.26549793,692.66,691.35,0.28928907]
[1736941855220,1.08032044,692.67,691.35,0.28928907]
[1736941855411,0.28870443,692.75,691.35,0.28928907]
[1736941855412,1.08032044,692.65,691.35,0.28928907]
[1736941856119,1.08032044,692.64,691.35,1.37158326]
[1736941856815,1.08032044,692.62,691.38,1.08229419]
[1736941857716,1.08032044,692.65,691.35,0.28928907]
[1736941859821,1.08032044,692.64,691.35,0.28928907]
[1736941860823,1.08032044,692.65,691.35,0.28928907]
[1736941861719,1.08032044,692.64,691.35,0.28928907]
[1736941862624,1.08032044,692.66,691.35,0.28928907]
[1736941864625,1.08032044,692.65,691.35,0.28928907]
[1736941865722,0.28870443,692.75,691.35,0.28928907]
[1736941865723,1.08032044,692.64,691.35,0.28928907]
[1736941866720,1.08032044,692.63,691.35,0.28928907]
[1736941867522,1.08032044,692.59,691.35,0.28928907]
[1736941868529,1.08032044,692.61,691.35,0.28928907]
[1736941869231,1.08032044,692.6,691.36,1.08229419]
[1736941870435,1.08032044,692.73,691.35,0.28928907]
[1736941871030,1.08032044,692.71,691.35,0.28928907]
[1736941872236,1.08032044,692.72,691.35,0.28928907]
[1736941873837,0.26559063,692.71,691.35,0.28928907]
[1736941874037,0.26559063,692.7,691.35,0.28928907]
[1736941874236,0.26559063,692.69,691.35,0.28928907]
[1736941874536,0.26559063,692.68,691.35,0.28928907]
[1736941874732,1.08032044,692.73,691.35,0.28928907]
[1736941874937,0.26559743,692.72,691.35,0.28928907]
[1736941875136,1.08032044,692.42,691.35,0.28928907]
[1736941875333,0.26559743,692.41,691.35,0.28928907]
[1736941876537,1.08032044,692.47,691.35,0.28928907]
[1736941876738,0.2655996,692.46,691.35,0.28928907]
[1736941877241,1.08032044,692.45,691.35,0.28928907]
[1736941877438,0.2655996,692.44,691.35,0.28928907]
[1736941878235,1.08032044,692.47,691.35,0.28928907]
[1736941878539,0.26559921,692.46,691.35,0.28928907]
[1736941879436,0.26559921,692.45,691.35,0.28928907]
[1736941879634,0.26559921,692.44,691.35,0.28928907]
[1736941879834,0.26559921,692.43,691.35,0.28928907]
[1736941880139,0.26559921,692.42,691.35,0.28928907]
[1736941880339,0.26560207,692.41,691.35,0.28928907]
[1736941880534,1.08032044,692.51,691.35,0.28928907]
[1736941880734,0.55440937,692.5,691.35,0.28928907]
[1736941880939,0.26560071,692.49,691.35,0.28928907]
[1736941883138,0.26560162,692.48,691.35,0.28928907]
[1736941883334,0.26560162,692.49,691.35,0.28928907]
[1736941883533,0.28880866,692.5,691.35,0.28928907]
[1736941883534,0.26560162,692.48,691.35,0.28928907]
[1736941883837,0.26560162,692.47,691.35,0.28928907]
[1736941884039,0.28880866,692.5,691.35,0.28928907]
[1736941884240,0.26560357,692.49,691.35,0.28928907]
[1736941884840,0.26560357,692.49,690.81,2.81260726]
[1736941885039,0.26560357,692.49,690.82,0.28951101]
[1736941885543,1.08032044,692.48,690.82,0.28951101]
[1736941885942,0.26563741,692.47,690.82,0.28951101]
[1736941887040,0.26563741,692.46,690.83,1.67772107]
[1736941887342,0.26563741,692.45,690.84,2.81071505]
[1736941887542,0.26563741,692.44,690.85,1.67772107]
[1736941887740,0.26563741,692.43,690.86,0.28949425]
[1736941887941,0.26563741,692.42,690.86,0.28949425]
[1736941888140,0.26563741,692.41,690.86,0.28949425]
[1736941888343,0.26563741,692.4,690.86,0.28949425]
[1736941888642,0.2656337,692.39,690.86,0.28949425]
[1736941888842,0.55449241,692.38,690.86,0.28949425]
[1736941889042,0.2656337,692.37,690.86,0.28949425]
[1736941891239,0.28885871,692.38,690.86,0.28949425]
[1736941891544,0.26563754,692.37,690.86,0.28949425]
[1736941892139,0.28885871,692.38,690.86,0.28949425]
[1736941897152,0.26563279,692.37,690.86,0.28949425]
[1736941898647,0.28885871,692.38,690.86,0.28949425]
[1736941899149,0.26564032,692.37,690.86,0.28949425]
[1736941899548,0.28885871,692.38,690.86,0.28949425]
[1736941899749,0.26564469,692.37,690.86,0.28949425]
[1736941901447,0.28885871,692.38,690.86,0.28949425]
[1736941909456,1.36917915,692.38,690.86,0.28949425]
[1736941911156,1.08032044,692.37,690.86,0.28949425]
[1736941911554,0.26564822,692.36,690.86,0.28949425]
[1736941912553,1.08032044,692.31,690.88,1.08229419]
[1736941912760,1.08032044,692.31,690.89,0.28948168]
[1736941913355,0.28885871,692.38,690.89,0.28948168]
[1736941913356,1.08032044,692.29,690.89,0.28948168]
[1736941914861,0.28885871,692.38,690.93,1.08229419]
[1736941914862,1.08032044,692.23,690.93,1.08229419]
[1736941915061,1.08032044,692.23,690.93,1.37175911]
[1736941916263,1.08032044,692.23,690.98,1.08229419]
[1736941917066,1.08032044,692.22,690.99,1.08229419]
[1736941919064,1.08032044,692.21,690.99,1.08229419]
[1736941919862,1.08032044,692.2,691.01,1.08229419]
[1736941921166,1.08032044,692.2,691.0,1.08229419]
[1736941921467,1.08032044,692.21,691.0,1.08229419]
[1736941922164,1.08032044,692.23,691.07,1.08229419]
[1736941922962,1.08032044,692.23,691.04,1.08229419]
[1736941923170,1.08032044,692.22,691.04,1.08229419]
[1736941924170,1.08032044,692.22,691.05,1.08229419]
[1736941925070,1.08032044,692.23,691.06,1.08229419]
[1736941926068,1.08032044,692.24,691.06,1.08229419]
[1736941926867,1.08032044,692.23,691.07,1.08229419]
[1736941927772,1.08032044,692.24,691.09,1.08229419]
[1736941928766,1.08032044,692.25,691.06,1.08229419]
[1736941930667,0.28885871,692.38,690.93,0.28946492]
[1736941930668,1.08032044,692.23,691.05,1.08229419]
[1736941931270,1.08032044,692.21,691.06,1.08229419]
[1736941932573,1.08032044,692.19,691.06,1.08229419]
[1736941933571,0.28885871,692.38,691.0,1.08229419]
[1736941933572,1.08032044,692.14,691.0,1.08229419]
[1736941934774,1.08032044,692.16,690.97,1.08229419]
[1736941935971,1.37036408,692.38,690.93,0.28946492]
[1736941935972,1.08032044,692.15,690.96,1.08229419]
[1736941936773,1.08032044,692.37,690.97,0.28944816]
[1736941937770,0.28885871,692.38,690.97,0.28944816]
[1736941939770,1.36917915,692.38,690.97,0.28944816]
[1736941940773,0.28885871,692.38,690.97,0.28944816]
[1736941944785,0.26563646,692.37,690.98,1.6836885]
[1736941944980,1.08032044,692.23,690.98,1.97313247]
[1736941945183,1.08032044,692.23,690.98,0.28944397]
[1736941945479,1.08032044,692.23,690.99,4.50484694]
[1736941945676,1.08032044,692.23,690.99,2.82118422]
[1736941946075,1.08032044,692.18,691.08,1.08229419]
[1736941947685,1.08032044,692.16,691.13,1.08229419]
[1736941948984,1.08032044,692.16,690.98,0.28944397]
[1736941948985,1.08032044,692.15,691.12,1.08229419]
[1736941949985,1.08032044,692.16,691.12,1.08229419]
[1736941950984,1.08032044,692.19,691.16,1.08229419]
[1736941952086,1.08032044,692.21,691.15,1.08229419]
[1736941954179,1.08032044,692.23,691.11,1.08229419]
[1736941955185,1.08032044,692.25,691.07,1.08229419]
[1736941956186,1.08032044,692.24,691.06,1.08229419]
[1736941957283,1.08032044,692.27,691.08,1.08229419]
[1736941959085,1.08032044,692.28,691.09,1.08229419]
[1736941960286,1.08032044,692.35,691.11,1.08229419]
[1736941961292,1.08032044,692.37,691.12,1.08229419]
[1736941962189,1.08032044,692.37,691.11,1.08229419]
[1736941963092,1.36917915,692.38,691.1,1.08229419]
[1736941963785,1.08032044,692.37,691.13,1.08229419]
[1736941964592,1.08032044,692.37,691.14,4.50005846]
[1736941964793,1.08032044,692.37,691.14,2.81823117]
[1736941964993,0.28885871,692.38,691.15,1.08229419]
[1736941966095,0.28885871,692.38,691.19,1.08229419]
[1736941966891,0.28885871,692.38,691.18,1.08229419]
[1736941967996,1.36917915,692.38,691.15,1.08229419]
[1736941969393,0.28885871,692.38,691.12,1.08229419]
[1736941970496,0.28885871,692.38,691.1,1.08229419]
[1736941971192,0.28885871,692.38,691.08,1.08229419]
[1736941971995,0.28885871,692.38,691.09,0.2893979]
[1736941972394,0.28885871,692.38,691.09,1.37169209]
[1736941973194,0.28885871,692.38,691.09,0.2893979]
[1736941973995,0.28885871,692.38,691.1,2.81412946]
[1736941974194,0.28885871,692.38,691.13,1.08229419]
[1736941975098,0.28885871,692.38,691.14,1.37167116]
[1736941975293,0.28885871,692.38,691.15,0.28937278]
[1736941980902,1.08032044,692.58,691.15,0.28937278]
[1736941981905,1.08032044,693.2,691.15,0.28937278]
[1736941982299,0.28852534,693.18,691.15,0.28937278]
[1736941986207,1.50864327,693.17,691.15,0.28937278]
[1736941986800,0.28853783,693.15,691.15,0.28937278]
[1736941987003,0.26549631,693.14,691.15,0.28937278]
[1736941987201,0.28855032,693.12,691.15,0.28937278]
[1736941987506,0.26549631,693.11,691.15,0.28937278]
[1736941987699,0.28856281,693.09,691.15,0.28937278]
[1736941987904,1.08032044,692.87,691.15,0.28937278]
[1736941988206,0.55415491,692.86,691.15,0.28937278]
[1736941988406,0.55415907,692.85,691.15,0.28937278]
[1736941988602,0.26549631,692.84,691.15,0.28937278]
[1736941989004,0.55416804,692.83,691.15,0.28937278]
[1736941989206,0.26549694,692.82,691.15,0.28937278]
[1736941990310,0.5541722,692.82,691.15,0.28937278]
[1736941990508,0.26549694,692.81,691.15,0.28937278]
[1736941991108,0.2886836,692.8,691.15,0.28937278]
[1736941991306,0.26549694,692.79,691.15,0.28937278]
[1736941991503,0.28869193,692.78,691.15,0.28937278]
[1736941992403,0.265509,692.77,691.15,0.28937278]
[1736941993008,0.28870027,692.76,691.15,0.28937278]
[1736941993209,0.265509,692.75,691.15,0.28937278]
[1736941993910,1.36902904,692.74,691.15,0.28937278]
[1736941994112,0.265509,692.73,691.15,0.28937278]
[1736941994410,0.55424249,692.72,691.15,0.28937278]
[1736941994710,0.26552555,692.71,691.15,0.28937278]
[1736941995205,1.08032044,692.65,691.16,1.08229419]
[1736941995406,0.26552555,692.64,691.17,0.28936441]
[1736941996110,1.08032044,692.62,691.18,1.08229419]
[1736941996310,0.26552555,692.61,691.19,0.28935603]
[1736941997209,0.26553937,692.6,691.19,0.28935603]
[1736941997406,0.26553937,692.59,691.19,0.28935603]
[1736941997605,1.08032044,692.64,691.19,0.28935603]
[1736941997806,0.26553868,692.63,691.19,0.28935603]
[1736941998011,1.34585912,692.63,691.19,0.28935603]
[1736941998207,0.26553868,692.62,691.19,0.28935603]
[1736941998713,1.34585912,692.62,691.19,0.28935603]
[1736941998911,0.26553868,692.61,691.19,0.28935603]
[1736941999712,1.34585912,692.61,691.19,0.28935603]
[1736941999913,0.26554234,692.6,691.19,0.28935603]
[1736942000108,1.08032044,692.61,691.19,0.28935603]
[1736942001513,1.08032044,692.65,691.19,0.28935603]
[1736942002413,1.08032044,692.64,691.19,0.28935603]
[1736942003415,0.28872527,692.7,691.19,0.28935603]
[1736942005309,1.36904571,692.7,691.19,0.28935603]
[1736942006315,1.08032044,692.69,691.19,0.28935603]
[1736942006614,0.28873361,692.68,691.19,0.28935603]
[1736942008017,1.36905405,692.68,691.19,0.28935603]
[1736942008814,0.28873361,692.68,691.19,0.28935603]
[1736942010810,1.36905405,692.68,691.19,0.28935603]
[1736942011216,0.2655492,692.67,691.19,0.28935603]
[1736942011416,0.28874195,692.66,691.19,0.28935603]
[1736942012019,1.08032044,692.59,691.19,0.28935603]
[1736942012921,1.08032044,692.6,691.19,0.28935603]
[1736942014122,0.28874195,692.66,691.19,0.28935603]
[1736942014123,1.08032044,692.59,691.19,0.28935603]
[1736942015124,1.08032044,692.58,691.19,0.28935603]
[1736942018118,1.08032044,692.54,691.19,0.28935603]
[1736942019129,0.26554928,692.53,691.2,1.67802877]
[1736942019326,1.08032044,692.55,691.2,1.67802877]
[1736942019527,0.26554811,692.54,691.2,1.67802877]
[1736942019918,0.26554811,692.54,691.21,2.8118941]
[1736942020127,1.08032044,692.45,691.25,1.08229419]
[1736942021121,1.08032044,692.45,691.26,1.08229419]
[1736942022324,1.08032044,692.44,691.26,1.08229419]
[1736942023228,1.08032044,692.43,691.26,1.08229419]
[1736942024119,1.08032044,692.43,691.28,1.08229419]
[1736942025027,1.08032044,692.41,691.29,1.08229419]
[1736942026024,1.08032044,692.4,691.31,1.08229419]
[1736942026824,1.08032044,692.38,691.31,1.08229419]
[1736942028029,1.08032044,692.37,691.33,1.08229419]
[1736942029930,0.85124367,692.65,691.35,1.08229419]
[1736942029931,1.08032044,692.36,691.35,1.08229419]
[1736942030833,1.08032044,692.62,691.19,0.28935603]
[1736942031031,0.28876279,692.61,691.19,0.28935603]
[1736942033333,0.26557612,692.6,691.19,0.28935603]
[1736942033533,0.28877113,692.59,691.19,0.28935603]
[1736942033733,0.26557612,692.58,691.19,0.28935603]
[1736942034027,0.55435142,692.58,691.19,0.28935603]
[1736942034231,1.08032044,692.33,691.22,1.08229419]
[1736942034926,1.08032044,692.33,691.19,0.28935603]
[1736942034927,1.08032044,692.32,691.19,1.37165022]
[1736942036133,0.2887753,692.58,691.19,0.28935603]
[1736942036134,1.08032044,692.4,691.19,0.28935603]
[1736942036837,1.08032044,692.37,691.19,0.28935603]
[1736942037830,1.08032044,692.36,691.19,0.28935603]
[1736942038836,1.08032044,692.39,691.19,0.28935603]
[1736942039635,1.08032044,692.41,691.19,0.28935603]
[1736942040838,1.08032044,692.4,691.19,0.28935603]
[1736942041940,1.08032044,692.42,691.19,0.28935603]
[1736942043339,0.26562142,692.41,691.19,0.28935603]
[1736942043641,0.26562083,692.4,691.19,0.28935603]
[1736942043939,0.26562083,692.39,691.19,0.28935603]
[1736942044133,1.08032044,692.34,691.19,0.28935603]
[1736942044337,0.26562083,692.33,691.19,0.28935603]
[1736942045239,1.08032044,692.32,691.19,0.28935603]
[1736942045438,0.26562083,692.31,691.19,0.28935603]
[1736942045640,1.08032044,692.32,691.19,0.28935603]
[1736942045941,0.26562108,692.31,691.19,0.28935603]
[1736942046137,1.08032044,692.33,691.19,0.28935603]
[1736942046341,0.26562299,692.32,691.19,0.28935603]
[1736942047943,0.26562299,692.31,691.19,0.28935603]
[1736942048137,1.08032044,692.34,691.19,0.28935603]
[1736942048335,0.26562376,692.33,691.19,0.28935603]
[1736942048944,1.08032044,692.34,691.19,0.28935603]
[1736942048945,0.26562376,692.32,691.19,0.28935603]
[1736942049143,0.26562376,692.31,691.19,0.28935603]
[1736942049343,0.26562376,692.3,691.19,0.28935603]
[1736942049642,1.08032044,692.34,691.19,0.28935603]
[1736942049843,0.26563939,692.33,691.19,0.28935603]
[1736942050743,1.08032044,692.3,691.19,0.28935603]
[1736942050944,0.26563939,692.29,691.19,0.28935603]
[1736942051242,1.08032044,692.3,691.19,0.28935603]
[1736942051840,1.08150537,692.48,691.19,0.28935603]
[1736942051841,1.08032044,692.33,691.19,0.28935603]
[1736942052040,0.26562431,692.32,691.19,0.28935603]
[1736942052838,1.08032044,692.33,691.19,0.28935603]
[1736942053040,1.08032044,692.35,691.19,0.28935603]
[1736942053243,0.26561655,692.34,691.19,0.28935603]
[1736942054146,0.26561655,692.33,691.19,0.28935603]
[1736942054440,1.08032044,692.36,691.19,0.28935603]
[1736942054639,0.26561321,692.35,691.19,0.28935603]
[1736942055045,0.26561321,692.34,691.19,0.28935603]
[1736942055239,1.08032044,692.37,691.19,0.28935603]
[1736942056043,1.08032044,692.43,691.19,0.28935603]
[1736942057146,1.08032044,692.48,691.19,0.28935603]
[1736942058748,0.2887753,692.58,691.19,0.28935603]
[1736942058944,0.26555628,692.57,691.19,0.28935603]
[1736942059944,0.2887753,692.58,691.19,0.28935603]
[1736942060146,0.26555899,692.57,691.19,0.28935603]
[1736942061648,1.08060261,692.51,691.19,0.28935603]
[1736942063747,1.08060261,692.53,691.19,0.28935603]
[1736942064847,1.08060261,692.54,691.19,0.28935603]
[1736942065049,0.2655473,692.53,691.19,0.28935603]
[1736942065252,1.08060261,692.54,691.19,0.28935603]
[1736942065544,1.36937791,692.58,691.19,0.28935603]
[1736942067448,0.2887753,692.58,691.19,0.28935603]
[1736942069352,1.36937791,692.58,691.19,0.28935603]
[1736942070248,1.08060261,692.57,691.19,0.28935603]
[1736942071356,0.2887753,692.58,691.19,0.28935603]
[1736942071654,0.2655501,692.57,691.19,0.28935603]
[1736942073656,0.2655577,692.56,691.19,0.28935603]
[1736942074356,1.08060261,692.57,691.19,0.28935603]
[1736942074552,0.2655576,692.55,691.19,0.28935603]
[1736942074750,1.08060261,692.57,691.19,0.28935603]
[1736942074956,0.26555668,692.56,691.19,0.28935603]
[1736942076553,1.08060261,692.52,691.19,0.28935603]
[1736942076757,0.26555668,692.51,691.19,0.28935603]
[1736942077457,1.34615929,692.51,691.19,0.28935603]
[1736942077655,0.26555668,692.5,691.19,0.28935603]
[1736942078662,1.34615929,692.5,691.19,0.28935603]
[1736942078857,0.26555668,692.49,691.19,0.28935603]
[1736942079260,0.26555861,692.48,691.19,0.28935603]
[1736942079460,0.26555861,692.47,691.19,0.28935603]
[1736942079661,1.08060261,692.51,691.19,0.28935603]
[1736942079858,0.26555874,692.5,691.19,0.28935603]
[1736942080263,1.08060261,692.5,691.19,0.28935603]
[1736942081267,1.36937791,692.58,691.19,0.28935603]
[1736942083769,1.08060261,692.56,691.19,0.28935603]
[1736942084065,0.26557418,692.55,691.19,0.28935603]
[1736942084867,1.08060261,692.48,691.19,0.28935603]
[1736942085465,1.08060261,692.46,691.19,0.28935603]
[1736942086467,1.08060261,692.44,691.19,0.28935603]
[1736942088269,0.26560158,692.43,691.19,0.28935603]
[1736942088468,1.34620419,692.43,691.19,0.28935603]
[1736942088667,0.26560158,692.42,691.19,0.28935603]
[1736942089664,1.08060261,692.33,691.19,0.28935603]
[1736942090466,1.08060261,692.34,691.19,0.28935603]
[1736942091566,1.08060261,692.33,691.19,0.28935603]
[1736942093169,1.08060261,692.34,691.19,0.28935603]
[1736942094167,1.08060261,692.33,691.19,0.28935603]
[1736942096466,1.08060261,692.34,691.19,0.28935603]
[1736942098670,1.08060261,692.33,691.19,0.28935603]
[1736942101872,1.08060261,692.34,691.19,0.28935603]
[1736942102470,1.08060261,692.33,691.19,0.28935603]
[1736942105674,1.08060261,692.34,691.19,0.28935603]
[1736942106877,1.08060261,692.33,691.19,0.28935603]
[1736942108079,1.08060261,692.32,691.19,0.28935603]
[1736942109181,0.2887753,692.58,691.19,0.28935603]
[1736942127793,0.26555635,692.57,691.19,0.28935603]
[1736942128695,0.2887753,692.58,691.19,0.28935603]
[1736942134003,0.2887753,692.58,691.2,3.6154771]
[1736942134207,0.2887753,692.58,691.21,2.82783254]
[1736942134405,0.2887753,692.58,691.22,5.62872255]
[1736942134599,0.2887753,692.58,691.23,2.82782417]
[1736942134905,0.2887753,692.58,691.29,1.07699222]
[1736942135505,0.2887753,692.58,691.3,0.28930999]
[1736942139710,0.2887753,692.58,691.3,1.36630221]
[1736942140706,0.2887753,692.58,691.33,1.07699222]
[1736942141909,0.2887753,692.58,691.34,1.07699222]
[1736942142506,0.2887753,692.58,691.33,1.07699222]
[1736942143313,1.36937791,692.58,691.35,1.07699222]
[1736942144111,1.08060261,692.56,691.33,1.07699222]
[1736942145309,1.08060261,692.55,691.3,0.28930999]
[1736942146216,1.08060261,692.54,691.3,0.28930999]
[1736942147115,1.08060261,692.53,691.3,0.28930999]
[1736942148414,1.08060261,692.5,691.3,0.28930999]
[1736942149419,1.08060261,692.51,691.3,0.28930999]
[1736942149917,1.08060261,692.51,691.31,4.47347052]
[1736942150117,1.08060261,692.51,691.31,2.80165531]
[1736942150319,1.36937791,692.58,691.34,1.07699222]
[1736942151314,1.36937791,692.58,691.4,1.07699222]
[1736942152219,0.2887753,692.58,691.41,1.07699222]
[1736942153017,0.2887753,692.58,691.42,1.07699222]
[1736942155120,0.2887753,692.58,691.43,1.07699222]
[1736942156316,0.2887753,692.58,691.44,1.07699222]
[1736942157420,0.2887753,692.58,691.45,1.07699222]
[1736942158322,0.2887753,692.58,691.32,0.28930162]
[1736942158323,0.2887753,692.58,691.44,1.07699222]
[1736942159418,0.2887753,692.58,691.35,1.07699222]
[1736942159616,0.2887753,692.58,691.36,0.28928488]
[1736942169329,0.2887753,692.58,691.37,2.53944972]
[1736942169628,0.2887753,692.58,691.38,2.82872623]
[1736942169831,0.2887753,692.58,691.39,5.63189851]
[1736942170035,0.2887753,692.58,691.4,2.82871787]
[1736942170229,0.2887753,692.58,691.4,0.28926815]
[1736942170440,0.2887753,692.58,691.49,1.07699222]